bitfinex/quotes_SOLUSD_20250223
["timestamp","ask_amount","ask_price","bid_price","bid_amount"]
[1740336432301,18.64964886,168.35,168.33,5.9707]
[1740336437044,18.64964886,168.35,168.33,0.03]
[1740336444262,18.64964886,168.35,168.33,9.2404564]
[1740336444427,18.64964886,168.35,168.34,5.9403]
[1740336444626,18.64964886,168.37,168.34,30.0015564]
[1740336445362,18.64964886,168.37,168.34,5.9403]
[1740336446562,18.64964886,168.37,168.33,0.03]
[1740336446563,18.64964886,168.37,168.33,5.9707]
[1740336446935,18.64964886,168.37,168.33,15.1811564]
[1740336447132,18.64964886,168.37,168.33,30.0328564]
[1740336448064,18.64964886,168.37,168.34,9.2104564]
[1740336448362,18.64964886,168.37,168.34,5.9403]
[1740336448562,18.64964886,168.37,168.34,15.1507564]
[1740336449840,18.64964886,168.37,168.33,9.2404564]
[1740336450666,18.64964886,168.37,168.34,9.2104564]
[1740336450850,80.8,168.38,168.35,9.2104564]
[1740336451169,18.64964886,168.39,168.35,9.2104564]
[1740336451876,18.64964886,168.39,168.36,9.2104564]
[1740336453570,18.64964886,168.39,168.37,5.9393]
[1740336454849,18.64964886,168.39,168.36,5.9396]
[1740336459587,27.86010526,168.39,168.34,30.0015564]
[1740336460758,27.86010526,168.39,168.34,20.7911]
[1740336463082,27.86010526,168.39,168.34,30.0015564]
[1740336463584,18.64964886,168.36,168.33,0.03]
[1740336463785,18.64964886,168.36,168.33,5.9707]
[1740336463987,18.64964886,168.37,168.33,5.9707]
[1740336468091,18.64964886,168.38,168.34,9.2104564]
[1740336468762,18.64964886,168.38,168.33,9.2404564]
[1740336469315,18.64964886,168.38,168.34,5.9403]
[1740336469595,18.64964886,168.38,168.34,15.1507564]
[1740336470267,18.64964886,168.38,168.35,9.2104564]
[1740336471198,18.64964886,168.38,168.36,5.9396]
[1740336472162,18.64964886,168.38,168.36,15.1500564]
[1740336472576,18.71264886,168.4,168.36,15.1500564]
[1740336475695,18.71264886,168.4,168.38,9.2104564]
[1740336476010,0.063,168.4,168.38,9.2104564]
[1740336477805,0.063,168.4,168.39,5.9385]
[1740336481917,0.063,168.4,168.38,5.9388]
[1740336486524,0.063,168.4,168.38,9.2104564]
[1740336487330,0.063,168.4,168.37,9.2104564]
[1740336489234,0.063,168.4,168.38,5.9389]
[1740336489721,18.64964886,168.39,168.35,9.2104564]
[1740336490597,18.64964886,168.39,168.36,5.9395]
[1740336491616,0.063,168.4,168.36,5.9395]
[1740336492029,0.063,168.4,168.36,15.1499564]
[1740336493105,0.063,168.4,168.36,15.1799564]
[1740336495533,18.64964886,168.39,168.36,0.03]
[1740336496736,9.2104564,168.39,168.36,0.03]
[1740336498119,18.64964886,168.39,168.36,0.03]
[1740336498510,18.64964886,168.39,168.36,5.9696]
[1740336502340,0.063,168.4,168.36,5.9696]
[1740336503550,0.063,168.4,168.36,9.2404564]
[1740336505018,0.063,168.4,168.36,15.1797564]
[1740336512840,0.063,168.4,168.36,9.2404564]
[1740336514048,0.063,168.4,168.36,15.1797564]
[1740336518756,0.063,168.4,168.37,9.2104564]
[1740336520157,0.063,168.4,168.37,15.1496564]
[1740336520866,0.063,168.4,168.37,5.9392]
[1740336521226,0.063,168.4,168.37,9.2104564]
[1740336523064,0.063,168.4,168.39,9.2104564]
[1740336525242,0.063,168.4,168.39,15.1489564]
[1740336526039,80.8,168.47,168.39,66.837182]
[1740336526249,114.243,168.48,168.44,9.2104564]
[1740336526443,18.64964886,168.47,168.44,9.2104564]
[1740336527364,18.64964886,168.47,168.44,15.1468564]
[1740336527553,18.64964886,168.47,168.44,14.1468564]
[1740336528461,18.71264886,168.48,168.44,14.1468564]
[1740336529033,18.71264886,168.48,168.41,9.2104564]
[1740336529034,18.64964886,168.45,168.41,9.2104564]
[1740336529233,9.2104564,168.45,168.4,15.1486564]
[1740336529429,18.64964886,168.44,168.4,9.2104564]
[1740336529665,27.86010526,168.44,168.39,9.2104564]
[1740336529863,4.32,168.43,168.39,15.1489564]
[1740336530229,4.32,168.43,168.4,9.2104564]
[1740336530632,18.64964886,168.42,168.4,15.1485564]
[1740336531766,18.64964886,168.42,168.41,9.2104564]
[1740336534369,18.64964886,168.42,168.37,5.9393]
[1740336534567,18.64964886,168.42,168.41,9.2104564]
[1740336538781,18.64964886,168.42,168.41,15.1482564]
[1740336539381,18.64964886,168.42,168.41,9.2104564]
[1740336542281,18.64964886,168.42,168.4,9.2104564]
[1740336544398,18.64964886,168.42,168.4,15.1485564]
[1740336545557,18.64964886,168.42,168.41,9.2104564]
[1740336545902,18.382587,168.42,168.41,9.2104564]
[1740336546296,18.382587,168.42,168.4,15.1485564]
[1740336552895,18.382587,168.42,168.4,15.1785564]
[1740336557003,18.382587,168.42,168.41,9.2104564]
[1740336557502,18.382587,168.42,168.4,0.03]
[1740336557800,27.86010526,168.41,168.4,0.03]
[1740336557997,29.39470526,168.41,168.4,0.03]
[1740336558983,35.33250526,168.41,168.4,0.03]
[1740336567520,72.17433086,168.41,168.4,0.03]
[1740336567687,25.18554886,168.4,168.39,0.03]
[1740336567888,18.64964886,168.38,168.36,0.03]
[1740336568214,34.70980526,168.37,168.36,0.03]
[1740336568806,115.50980526,168.37,168.36,0.03]
[1740336569317,114.50980526,168.37,168.36,0.03]
[1740336569487,120.44910526,168.37,168.36,0.03]
[1740336569683,114.50980526,168.37,168.36,0.03]
[1740336570185,120.44910526,168.37,168.36,0.03]
[1740336573102,123.38146711,168.37,168.36,0.03]
[1740336573619,42.58146711,168.37,168.36,0.03]
[1740336574101,43.58146711,168.37,168.36,0.03]
[1740336574889,29.2104564,168.34,168.33,0.03]
[1740336575090,47.86010526,168.34,168.33,0.03]
[1740336576019,53.80040526,168.34,168.33,0.03]
[1740336583412,20.0,168.3,168.28,0.03]
[1740336583604,52.20010526,168.29,168.28,0.03]
[1740336583791,42.98964886,168.29,168.28,0.03]
[1740336585825,52.20010526,168.29,168.28,0.03]
[1740336586001,58.14220526,168.29,168.28,0.03]
[1740336591507,196.34220526,168.29,168.28,0.03]
[1740336595131,176.84964886,168.29,168.28,0.03]
[1740336595319,181.18964886,168.29,168.28,0.03]
[1740336601703,190.40010526,168.29,168.28,0.03]
[1740336602137,196.34220526,168.29,168.28,0.03]
[1740336602510,181.18964886,168.29,168.28,0.03]
[1740336603419,196.34220526,168.29,168.28,0.03]
[1740336610639,190.40010526,168.29,168.28,0.03]
[1740336610811,196.34220526,168.29,168.28,0.03]
[1740336615146,156.84964886,168.29,168.28,0.03]
[1740336615314,161.18964886,168.29,168.28,0.03]
[1740336615942,22.98964886,168.29,168.28,0.03]
[1740336616448,18.64964886,168.3,168.28,0.03]
[1740336616626,22.98964886,168.29,168.28,0.03]
[1740336617642,18.64964886,168.29,168.28,0.03]
[1740336617844,22.98964886,168.29,168.28,0.03]
[1740336634554,38.14220526,168.29,168.28,0.03]
[1740336635464,177.84960526,168.29,168.28,0.03]
[1740336637752,20.0,168.26,168.23,0.03]
[1740336637959,90.0104564,168.25,168.23,0.03]
[1740336638865,18.64964886,168.24,168.23,0.03]
[1740336639651,27.86010526,168.24,168.23,0.03]
[1740336639968,72.15313086,168.24,168.23,0.03]
[1740336640174,38.64964886,168.21,168.2,0.04030985]
[1740336640375,52.20010526,168.21,168.2,0.04030985]
[1740336641290,58.14500526,168.21,168.2,0.04030985]
[1740336641647,58.14500526,168.21,168.16,0.03]
[1740336641648,20.0,168.17,168.16,0.03]
[1740336641985,47.86010526,168.17,168.16,0.03]
[1740336643045,18.64964886,168.17,168.16,0.03]
[1740336643652,18.64964886,168.17,168.16,9.2404564]
[1740336643859,4.34,168.21,168.16,9.2404564]
[1740336644172,4.34,168.21,168.18,9.2104564]
[1740336644173,80.8,168.2,168.18,9.2104564]
[1740336644360,18.64964886,168.19,168.18,9.2104564]
[1740336645672,18.64964886,168.19,168.16,5.9763]
[1740336645673,18.64964886,168.19,168.17,9.2104564]
[1740336645850,18.64964886,168.19,168.16,15.1867564]
[1740336646048,18.64964886,168.19,168.16,0.03]
[1740336646254,27.86010526,168.19,168.16,0.03]
[1740336646446,18.64964886,168.17,168.16,0.03]
[1740336646648,99.44964886,168.17,168.16,0.03]
[1740336646980,99.44964886,168.17,168.16,15.1871564]
[1740336647166,99.44964886,168.17,168.16,0.03]
[1740336647746,99.44964886,168.17,168.16,9.2404564]
[1740336649048,99.44964886,168.17,168.16,15.1871564]
[1740336650975,18.64964886,168.19,168.16,15.1871564]
[1740336651177,18.64964886,168.19,168.17,9.2104564]
[1740336652351,18.64964886,168.19,168.16,9.2404564]
[1740336652565,18.64964886,168.19,168.16,0.03]
[1740336653177,18.64964886,168.19,168.16,5.9767]
[1740336653384,18.64964886,168.19,168.16,15.1871564]
[1740336656972,18.71264886,168.19,168.16,15.1871564]
[1740336658285,18.71264886,168.19,168.18,9.2104564]
[1740336658286,0.063,168.19,168.18,9.2104564]
[1740336659686,0.063,168.19,168.18,15.1564564]
[1740336660071,0.063,168.19,168.16,14.8967]
[1740336660072,18.71264886,168.19,168.16,5.9766]
[1740336660278,9.2734564,168.19,168.16,0.03]
[1740336660681,27.92310526,168.19,168.16,0.03]
[1740336661280,18.64964886,168.18,168.16,0.03]
[1740336662300,18.71264886,168.19,168.17,9.2104564]
[1740336662598,18.71264886,168.19,168.16,9.2404564]
[1740336663298,18.71264886,168.19,168.16,0.03]
[1740336663484,27.92310526,168.19,168.16,0.03]
[1740336664000,18.71264886,168.19,168.17,15.1564564]
[1740336669390,0.063,168.19,168.17,15.1564564]
[1740336670105,0.063,168.19,168.18,9.2104564]
[1740336671390,0.063,168.19,168.18,15.1564564]
[1740336671592,0.063,168.19,168.18,5.946]
[1740336676814,0.063,168.19,168.18,9.2104564]
[1740336677713,0.063,168.19,168.17,9.2104564]
[1740336678010,0.063,168.19,168.18,5.946]
[1740336678315,18.64964886,168.18,168.16,0.03]
[1740336678615,27.86010526,168.18,168.16,0.03]
[1740336681003,20.0,168.18,168.16,9.2404564]
[1740336681314,18.64964886,168.17,168.16,0.03]
[1740336683523,0.063,168.19,168.16,9.2404564]
[1740336683722,0.063,168.19,168.17,9.2104564]
[1740336684020,18.71264886,168.19,168.17,9.2104564]
[1740336684815,18.71264886,168.19,168.17,15.1567564]
[1740336685711,18.71264886,168.19,168.18,9.2104564]
[1740336686119,0.063,168.19,168.18,9.2104564]
[1740336686703,0.063,168.19,168.18,15.1564564]
[1740336703341,0.063,168.19,168.18,15.1864564]
[1740336704425,0.063,168.19,168.18,96.2864564]
[1740336728162,0.063,168.19,168.18,15.1864564]
[1740336734047,0.063,168.19,168.18,96.2864564]
[1740336738358,0.063,168.19,168.18,87.076]
[1740336740149,0.063,168.19,168.18,5.976]
[1740336743275,0.063,168.19,168.18,9.2404564]
[1740336744874,0.063,168.19,168.18,15.1864564]
[1740336755276,0.063,168.19,168.18,0.03]
[1740336779926,0.063,168.19,168.18,15.1864564]
[1740336780129,18.64964886,168.23,168.18,15.1864564]
[1740336780333,18.64964886,168.23,168.21,9.2104564]
[1740336780699,9.2104564,168.22,168.18,5.976]
[1740336781930,9.2104564,168.22,168.18,0.03]
[1740336784747,18.64964886,168.19,168.18,0.03]
[1740336784955,27.86010526,168.19,168.18,0.03]
[1740336786247,35.44640526,168.19,168.18,0.03]
[1740336788263,29.50080526,168.19,168.18,0.03]
[1740336789327,20.29034886,168.19,168.18,0.03]
[1740336791553,29.50080526,168.19,168.18,0.03]
[1740336792934,33.84080526,168.19,168.18,0.03]
[1740336795242,39.78640526,168.19,168.18,0.03]
[1740336802474,33.84080526,168.19,168.18,0.03]
[1740336803680,24.63034886,168.19,168.18,0.03]
[1740336804046,33.84080526,168.19,168.18,0.03]
[1740336809165,22.98964886,168.19,168.18,0.03]
[1740336810382,18.64964886,168.19,168.18,0.03]
[1740336810683,22.98964886,168.19,168.18,0.03]
[1740336812784,18.64964886,168.19,168.18,0.03]
[1740336819492,18.71264886,168.19,168.18,0.03]
[1740336828590,18.71264886,168.19,168.18,5.976]
[1740336829679,18.71264886,168.19,168.18,0.03]
[1740336832405,0.063,168.19,168.18,9.2404564]
[1740336834902,0.063,168.19,168.18,15.1864564]
[1740336835078,0.0001,168.19,168.18,96.2864564]
[1740336835283,0.0001,168.19,168.18,97.2864564]
[1740336840017,0.0001,168.22,168.21,21.0]
[1740336840218,0.07,168.28,168.23,1.0]
[1740336840423,0.07,168.28,168.27,9.2104564]
[1740336841433,0.07,168.28,168.27,15.1532564]
[1740336843719,0.133,168.28,168.27,15.1532564]
[1740336848642,0.0001,168.28,168.27,15.1532564]
[1740336848820,0.0001,168.28,168.27,96.2532564]
[1740336849321,0.0001,168.28,168.27,97.2532564]
[1740336850016,0.0001,168.28,168.27,98.14429993]
[1740336850423,0.0001,168.28,168.27,99.14429993]
[1740336851823,0.0001,168.28,168.27,100.67089993]
[1740336852440,0.063,168.33,168.29,1.0]
[1740336852632,0.063,168.36,168.32,9.2104564]
[1740336852938,0.063,168.36,168.35,9.2104564]
[1740336854040,0.063,168.36,168.34,9.2104564]
[1740336854535,18.71264886,168.36,168.33,5.9407]
[1740336858146,0.063,168.36,168.33,5.9407]
[1740336858523,18.71264886,168.36,168.33,5.9407]
[1740336859532,18.64964886,168.35,168.31,96.2516564]
[1740336859715,27.86010526,168.33,168.29,81.1]
[1740336859914,27.86010526,168.33,168.29,87.042]
[1740336860232,32.18010526,168.33,168.29,87.042]
[1740336860617,32.18010526,168.33,168.29,81.1]
[1740336861639,32.18010526,168.33,168.29,87.0421]
[1740336861829,22.96964886,168.33,168.29,96.2525564]
[1740336862947,22.96964886,168.33,168.3,9.2104564]
[1740336863132,4.32,168.33,168.31,9.2104564]
[1740336866047,4.32,168.33,168.31,15.1517564]
[1740336867852,4.32,168.33,168.3,9.2104564]
[1740336868153,4.32,168.33,168.29,96.2524564]
[1740336869856,18.64964886,168.32,168.29,96.2524564]
[1740336870631,18.64964886,168.32,168.29,15.1524564]
[1740336871346,18.64964886,168.32,168.29,5.942]
[1740336872355,27.86010526,168.32,168.26,9.2104564]
[1740336872656,18.64964886,168.3,168.26,9.2104564]
[1740336872857,27.86010526,168.3,168.25,15.1539564]
[1740336874828,9.2104564,168.29,168.24,90.3104564]
[1740336875961,9.2104564,168.29,168.24,9.2104564]
[1740336876256,18.64964886,168.27,168.23,15.1543564]
[1740336876459,32.18010526,168.27,168.23,5.9439]
[1740336877859,22.96964886,168.27,168.23,15.1543564]
[1740336880056,22.96964886,168.27,168.23,5.9439]
[1740336880057,32.18010526,168.27,168.23,5.9439]
[1740336880848,22.96964886,168.27,168.23,15.1543564]
[1740336882060,9.2104564,168.26,168.22,81.13]
[1740336882373,18.64964886,168.24,168.22,81.13]
[1740336882588,18.64964886,168.24,168.22,0.03]
[1740336883158,18.64964886,168.25,168.22,0.03]
[1740336885552,13.5304564,168.27,168.22,9.2404564]
[1740336885855,4.32,168.27,168.22,9.2404564]
[1740336886283,18.64964886,168.26,168.22,9.2404564]
[1740336886666,9.2104564,168.25,168.22,0.03]
[1740336887380,18.64964886,168.23,168.22,0.03]
[1740336889879,29.41530526,168.25,168.22,0.03]
[1740336891554,18.64964886,168.24,168.22,0.03]
[1740336894285,9.2104564,168.26,168.22,0.03]
[1740336894783,18.64964886,168.26,168.22,9.2404564]
[1740336895382,27.86010526,168.26,168.22,0.03]
[1740336895572,32.18010526,168.26,168.22,0.03]
[1740336896467,90.0104564,168.27,168.22,15.1849564]
[1740336896662,4.32,168.27,168.23,9.2104564]
[1740336897066,18.64964886,168.26,168.23,9.2104564]
[1740336897973,22.96964886,168.27,168.23,9.2104564]
[1740336898198,32.18010526,168.27,168.22,15.1849564]
[1740336899716,22.96964886,168.27,168.23,9.2104564]
[1740336900295,22.96964886,168.27,168.24,9.2104564]
[1740336900499,9.2104564,168.3,168.25,9.2104564]
[1740336900793,18.64964886,168.28,168.24,9.2104564]
[1740336900986,27.86010526,168.28,168.23,9.2104564]
[1740336901693,18.64964886,168.25,168.22,87.0744]
[1740336901892,27.86010526,168.25,168.22,87.0744]
[1740336902789,9.2104564,168.26,168.22,87.0744]
[1740336902985,18.64964886,168.25,168.22,87.0744]
[1740336903170,9.2104564,168.27,168.22,96.2848564]
[1740336903376,18.64964886,168.28,168.23,9.2104564]
[1740336904008,18.64964886,168.28,168.25,9.2104564]
[1740336904186,18.64964886,168.28,168.26,9.2104564]
[1740336905205,18.64964886,168.28,168.27,5.9428]
[1740336905395,4.32,168.29,168.27,5.9428]
[1740336906113,18.64964886,168.3,168.27,5.9428]
[1740336906276,22.96964886,168.3,168.27,5.9428]
[1740336907387,32.18010526,168.3,168.26,5.9431]
[1740336907587,9.2104564,168.28,168.23,15.1546564]
[1740336907797,18.64964886,168.26,168.23,5.9442]
[1740336909502,18.64964886,168.27,168.23,15.1546564]
[1740336909706,18.64964886,168.28,168.23,15.1546564]
[1740336912627,18.64964886,168.28,168.24,9.2104564]
[1740336913419,13.5304564,168.3,168.25,9.2104564]
[1740336913637,4.32,168.3,168.26,9.2104564]
[1740336913928,4.32,168.3,168.23,20.8048]
[1740336913929,18.64964886,168.29,168.27,5.9428]
[1740336918029,18.64964886,168.29,168.26,5.9431]
[1740336923245,18.64964886,168.29,168.26,9.2104564]
[1740336924942,18.64964886,168.29,168.27,5.9428]
[1740336925928,18.64964886,168.29,168.25,9.2104564]
[1740336927548,9.2104564,168.28,168.24,5.9438]
[1740336927753,27.86010526,168.27,168.23,81.13]
[1740336928144,18.64964886,168.25,168.23,81.13]
[1740336928451,32.18010526,168.24,168.23,81.13]
[1740336928633,32.18010526,168.24,168.23,0.03]
[1740336929830,38.12390526,168.24,168.23,0.03]
[1740336934651,32.18010526,168.24,168.23,0.03]
[1740336940040,38.12390526,168.24,168.23,0.03]
[1740336956272,74.96573086,168.24,168.23,0.03]
[1740336957156,38.12390526,168.24,168.23,0.03]
[1740336957665,74.96573086,168.24,168.23,0.03]
[1740336959175,18.64964886,168.23,168.22,0.03]
[1740336959386,27.86010526,168.23,168.22,0.03]
[1740336960181,33.80430526,168.23,168.22,0.03]
[1740336964160,36.72512615,168.23,168.22,0.03]
[1740336966263,36.78812615,168.23,168.22,0.03]
[1740336966683,36.78812615,168.23,168.18,0.03]
[1740336966874,27.86010526,168.19,168.14,0.03]
[1740336967190,18.64964886,168.16,168.14,0.03]
[1740336969190,18.64964886,168.17,168.14,0.03]
[1740336978682,18.64964886,168.17,168.15,9.2104564]
[1740336979104,18.64964886,168.18,168.15,9.2104564]
[1740336979382,22.96964886,168.18,168.15,9.2104564]
[1740336979793,18.64964886,168.18,168.15,9.2104564]
[1740336980089,22.96964886,168.18,168.16,5.9467]
[1740336982714,22.96964886,168.18,168.14,9.2404564]
[1740336982916,22.96964886,168.18,168.14,15.1878564]
[1740336987319,22.96964886,168.18,168.14,5.9774]
[1740336993749,18.64964886,168.18,168.14,5.9774]
[1740336993925,4.32,168.18,168.14,5.9774]
[1740336995355,4.32,168.18,168.14,15.1878564]
[1740336999064,4.32,168.18,168.14,5.9774]
[1740336999239,27.86010526,168.17,168.14,0.03]
[1740337001760,18.64964886,168.17,168.14,0.03]
[1740337007860,27.86010526,168.17,168.14,0.03]
[1740337013387,27.92310526,168.17,168.14,0.03]
[1740337020791,33.86950526,168.17,168.14,0.03]
[1740337023303,27.92310526,168.17,168.14,0.03]
[1740337027710,18.64964886,168.15,168.14,0.03]
[1740337036330,18.64964886,168.16,168.14,0.03]
[1740337047427,27.92310526,168.17,168.14,0.03]
[1740337047843,0.063,168.16,168.14,0.03]
[1740337065335,18.64964886,168.15,168.14,0.03]
[1740337065543,27.86010526,168.15,168.14,0.03]
[1740337066360,33.80710526,168.15,168.14,0.03]
[1740337067043,18.64964886,168.15,168.14,0.03]
[1740337067436,27.86010526,168.15,168.14,0.03]
[1740337070167,18.64964886,168.15,168.14,0.03]
[1740337081585,33.80710526,168.15,168.14,0.03]
[1740337087470,114.60710526,168.15,168.14,0.03]
[1740337087989,103.76964886,168.15,168.14,0.03]
[1740337090484,112.98010526,168.15,168.14,0.03]
[1740337093594,32.18010526,168.15,168.14,0.03]
[1740337097699,4.383,168.16,168.14,0.03]
[1740337098602,18.71264886,168.16,168.14,0.03]
[1740337099995,27.92310526,168.16,168.14,0.03]
[1740337106483,33.86980526,168.16,168.14,0.03]
[1740337107102,27.86010526,168.15,168.14,0.03]
[1740337110073,33.80710526,168.15,168.14,0.03]
[1740337114803,36.78244526,168.15,168.14,0.03]
[1740337118179,41.10244526,168.15,168.14,0.03]
[1740337119794,36.78244526,168.15,168.14,0.03]
[1740337119995,41.10244526,168.15,168.14,0.03]
[1740337120715,22.96964886,168.15,168.14,0.03]
[1740337125298,32.18010526,168.15,168.14,0.03]
[1740337126431,38.12710526,168.15,168.14,0.03]
[1740337128909,41.17027256,168.15,168.14,0.03]
[1740337182603,41.17027256,168.15,168.14,0.0001]
[1740337188493,58.44399034,168.15,168.14,0.0001]
[1740337189111,41.17027256,168.15,168.14,0.0001]
[1740337193704,58.21997947,168.15,168.14,0.0001]
[1740337193921,41.17027256,168.15,168.14,0.0001]
[1740337194907,58.24760738,168.15,168.14,0.0001]
[1740337195818,41.17027256,168.15,168.14,0.0001]
[1740337196523,58.2118191,168.15,168.14,0.0001]
[1740337199216,41.23327256,168.15,168.14,0.0001]
[1740337199719,58.00437328,168.15,168.14,0.0001]
[1740337200646,41.23327256,168.15,168.14,0.0001]
[1740337201146,58.07150896,168.15,168.14,0.0001]
[1740337202133,41.23327256,168.15,168.14,0.0001]
[1740337203044,36.91327256,168.15,168.14,0.0001]
[1740337203231,41.23327256,168.15,168.14,0.0001]
[1740337211458,36.91327256,168.15,168.14,0.0001]
[1740337211658,41.23327256,168.15,168.14,0.0001]
[1740337213770,27.92310526,168.15,168.14,0.0001]
[1740337213947,23.03264886,168.15,168.14,0.0001]
[1740337215580,18.71264886,168.15,168.14,0.0001]
[1740337216469,0.063,168.15,168.14,0.0001]
[1740337217074,0.063,168.17,168.15,1.0]
[1740337217275,0.063,168.17,168.14,87.5871]
[1740337217581,9.2734564,168.17,168.14,12.4342]
[1740337218172,9.2734564,168.17,168.14,14.0827]
[1740337218764,0.063,168.17,168.14,14.0827]
[1740337220572,0.063,168.17,168.15,9.2104564]
[1740337221162,0.063,168.17,168.16,9.2104564]
[1740337221486,0.0001,168.17,168.16,10.2104564]
[1740337222876,0.0001,168.17,168.16,16.1571564]
[1740337226978,0.0001,168.17,168.16,5.9467]
[1740337227369,9.2105564,168.17,168.15,87.0469]
[1740337227677,9.2104564,168.16,168.15,81.1]
[1740337228472,9.2104564,168.16,168.15,87.047]
[1740337228987,27.86020526,168.17,168.15,87.047]
[1740337229183,18.64974886,168.17,168.15,87.047]
[1740337231890,18.64974886,168.17,168.15,5.947]
[1740337232290,27.86020526,168.17,168.14,0.0001]
[1740337232589,9.2104564,168.16,168.14,0.0001]
[1740337232974,27.86020526,168.17,168.14,0.0001]
[1740337233476,27.86020526,168.17,168.13,4.9478]
[1740337233678,18.64974886,168.17,168.13,9.2104564]
[1740337234796,18.64974886,168.17,168.15,0.03]
[1740337235095,27.86020526,168.17,168.15,0.03]
[1740337242608,18.64974886,168.17,168.15,0.03]
[1740337245028,27.86020526,168.17,168.15,0.03]
[1740337250003,27.86010526,168.16,168.15,0.03]
[1740337256334,18.64964886,168.16,168.15,0.03]
[1740337257136,27.86010526,168.16,168.15,0.03]
[1740337260943,18.64964886,168.16,168.15,0.03]
[1740337261250,0.0001,168.17,168.15,0.03]
[1740337262248,18.64974886,168.17,168.15,0.03]
[1740337262840,0.0001,168.17,168.15,0.03]
[1740337263057,0.0001,168.17,168.16,9.2104564]
[1740337263443,0.0001,168.17,168.16,90.3104564]
[1740337264150,0.0001,168.17,168.16,96.2571564]
[1740337268436,0.0001,168.17,168.16,98.2571564]
[1740337268649,0.0001,168.17,168.16,96.2571564]
[1740337269965,0.0001,168.17,168.16,97.2571564]
[1740337270149,0.0001,168.17,168.16,96.2571564]
[1740337270349,0.0001,168.17,168.16,97.2571564]
[1740337273177,0.0001,168.17,168.16,87.0467]
[1740337273354,9.2105564,168.17,168.16,87.0467]
[1740337273556,0.0001,168.17,168.16,87.0467]
[1740337273875,9.2105564,168.17,168.16,5.9467]
[1740337275263,9.2105564,168.17,168.15,0.03]
[1740337275481,9.2104564,168.16,168.15,0.03]
[1740337276158,9.2105564,168.17,168.15,0.03]
[1740337280387,0.0001,168.17,168.15,0.03]
[1740337282580,9.2105564,168.17,168.15,0.03]
[1740337283294,0.0001,168.17,168.15,0.03]
[1740337283883,9.60840676,168.18,168.15,0.03]
[1740337284894,9.2104564,168.16,168.15,0.03]
[1740337286970,18.64964886,168.17,168.15,0.03]
[1740337287485,9.60840676,168.18,168.15,0.03]
[1740337287783,0.39795036,168.18,168.15,0.03]
[1740337289018,0.39795036,168.18,168.15,5.977]
[1740337290812,9.60840676,168.18,168.15,5.977]
[1740337291593,9.2104564,168.18,168.15,5.977]
[1740337294228,9.2104564,168.19,168.15,5.977]
[1740337295828,0.063,168.18,168.15,5.977]
[1740337297609,9.2734564,168.18,168.15,5.977]
[1740337302236,9.2104564,168.16,168.15,0.03]
[1740337304557,33.80680526,168.16,168.15,0.03]
[1740337304742,27.86010526,168.16,168.15,0.03]
[1740337305127,33.80680526,168.16,168.15,0.03]
[1740337306258,70.64863086,168.16,168.15,0.03]
[1740337310155,33.80680526,168.16,168.15,0.03]
[1740337311247,36.7994768,168.16,168.15,0.03]
[1740337311440,27.86010526,168.16,168.15,0.03]
[1740337313458,33.80680526,168.16,168.15,0.03]
[1740337313936,70.64863086,168.16,168.15,0.03]
[1740337317477,73.64666135,168.16,168.15,0.03]
[1740337318452,36.80483575,168.16,168.15,0.03]
[1740337325391,73.64666135,168.16,168.15,0.03]
[1740337326615,36.80483575,168.16,168.15,0.03]
[1740337328575,18.64964886,168.16,168.15,0.03]
[1740337330815,27.86010526,168.16,168.15,0.03]
[1740337339310,18.64964886,168.16,168.15,0.03]
[1740337346826,27.86010526,168.16,168.15,0.03]
[1740337349118,33.80680526,168.16,168.15,0.03]
[1740337350143,70.64863086,168.16,168.15,0.03]
[1740337351036,33.80680526,168.16,168.15,0.03]
[1740337351238,38.12680526,168.16,168.15,0.03]
[1740337352236,41.15692619,168.16,168.15,0.03]
[1740337359645,22.96964886,168.16,168.15,0.03]
[1740337360510,18.64964886,168.16,168.15,0.03]